[Event "*** Titled Tuesday Blitz"]
[Site "Chess.com"]
[Date "2019.02.05"]
[Round "9"]
[White "GM_dmitrij"]
[Black "CaptainCasanova"]
[Result "0-1"]
[WhiteElo "2775"]
[BlackElo "2797"]
[TimeControl "180+2"]
[EndTime "15:13:50 PST"]
[Termination "CaptainCasanova won on time"]

1. e4 {[%clk 0:03:01.9]} 1... e6 {[%clk 0:02:43.3]} 2. d4 {[%clk 0:03:02.1]}
2... d5 {[%clk 0:02:42.8]} 3. exd5 {[%clk 0:03:04]} 3... exd5 {[%clk 0:02:40.6]}
4. Nf3 {[%clk 0:03:05.9]} 4... Bd6 {[%clk 0:02:37.9]} 5. c4 {[%clk 0:03:05.7]}
5... Nf6 {[%clk 0:02:32.8]} 6. c5 {[%clk 0:03:05.2]} 6... Be7 {[%clk 0:02:31.7]}
7. Bd3 {[%clk 0:03:06.6]} 7... O-O {[%clk 0:02:31.7]} 8. O-O {[%clk 0:03:08.1]}
8... Bg4 {[%clk 0:02:25.8]} 9. Be3 {[%clk 0:03:03.4]} 9... b6 {[%clk 0:02:26.2]}
10. Nbd2 {[%clk 0:03:00.3]} 10... Nc6 {[%clk 0:02:21.6]} 11. Qa4 {[%clk
0:02:47.9]} 11... Bd7 {[%clk 0:02:07.9]} 12. Bb5 {[%clk 0:02:47.3]} 12... Qe8
{[%clk 0:02:09.3]} 13. Rfe1 {[%clk 0:02:18.8]} 13... a6 {[%clk 0:02:06.1]} 14.
Bxc6 {[%clk 0:02:19.9]} 14... Bxc6 {[%clk 0:02:06.9]} 15. Qc2 {[%clk 0:02:21.4]}
15... Bb7 {[%clk 0:01:54.2]} 16. Bg5 {[%clk 0:02:13.5]} 16... Qd8 {[%clk
0:01:52.7]} 17. Ne5 {[%clk 0:02:07.8]} 17... h6 {[%clk 0:01:44.6]} 18. Bh4
{[%clk 0:02:08.3]} 18... Re8 {[%clk 0:01:35.7]} 19. Rac1 {[%clk 0:02:07.6]}
19... bxc5 {[%clk 0:01:26.4]} 20. dxc5 {[%clk 0:02:05.8]} 20... c6 {[%clk
0:01:27.4]} 21. Nd3 {[%clk 0:01:45.6]} 21... Bc8 {[%clk 0:01:22]} 22. Ne5 {[%clk
0:01:42.2]} 22... Qc7 {[%clk 0:01:20]} 23. Bg3 {[%clk 0:01:26.6]} 23... Qb7
{[%clk 0:01:01.4]} 24. Nb3 {[%clk 0:01:20]} 24... Ne4 {[%clk 0:00:55.3]} 25.
Rxe4 {[%clk 0:01:06]} 25... dxe4 {[%clk 0:00:48.7]} 26. Na5 {[%clk 0:01:06.9]}
26... Qb5 {[%clk 0:00:48.7]} 27. Naxc6 {[%clk 0:01:08]} 27... Bf6 {[%clk
0:00:47.9]} 28. a4 {[%clk 0:01:01]} 28... Qb7 {[%clk 0:00:43.9]} 29. Na5 {[%clk
0:01:00.7]} 29... Qc7 {[%clk 0:00:41.8]} 30. Nec6 {[%clk 0:00:58.5]} 30... Qd7
{[%clk 0:00:39.3]} 31. Rd1 {[%clk 0:00:58.4]} 31... Qf5 {[%clk 0:00:34.2]} 32.
b4 {[%clk 0:00:50.5]} 32... Be6 {[%clk 0:00:31.5]} 33. Nc4 {[%clk 0:00:45]}
33... Bxc4 {[%clk 0:00:29.4]} 34. Qxc4 {[%clk 0:00:46.9]} 34... e3 {[%clk
0:00:31.3]} 35. fxe3 {[%clk 0:00:43.9]} 35... Rxe3 {[%clk 0:00:33.2]} 36. Bf2
{[%clk 0:00:20.8]} 36... Re4 {[%clk 0:00:29]} 37. Qd5 {[%clk 0:00:20.8]} 37...
Qxd5 {[%clk 0:00:21.8]} 38. Rxd5 {[%clk 0:00:22.7]} 38... Re2 {[%clk 0:00:23.7]}
39. g3 {[%clk 0:00:17.5]} 39... Rb2 {[%clk 0:00:25]} 40. Rd7 {[%clk 0:00:13.2]}
40... Re8 {[%clk 0:00:26.4]} 41. b5 {[%clk 0:00:05]} 41... axb5 {[%clk
0:00:26.8]} 42. a5 {[%clk 0:00:06.2]} 42... Ra2 {[%clk 0:00:26.5]} 43. Ra7
{[%clk 0:00:03.4]} 43... Ree2 {[%clk 0:00:27.2]} 0-1

[Event "*** Titled Tuesday Blitz"]
[Site "Chess.com"]
[Date "2019.02.05"]
[Round "9"]
[White "jcibarra"]
[Black "Ginger_GM"]
[Result "0-1"]
[WhiteElo "2697"]
[BlackElo "2613"]
[TimeControl "180+2"]
[EndTime "15:13:52 PST"]
[Termination "Ginger_GM won by resignation"]

1. e4 {[%clk 0:03:01.9]} 1... c5 {[%clk 0:02:59.6]} 2. Nf3 {[%clk 0:03:02.4]}
2... d6 {[%clk 0:03:00.8]} 3. d4 {[%clk 0:03:03]} 3... cxd4 {[%clk 0:03:02.2]}
4. Nxd4 {[%clk 0:03:04.5]} 4... Nf6 {[%clk 0:03:03.7]} 5. Nc3 {[%clk 0:03:05.6]}
5... g6 {[%clk 0:03:03.5]} 6. Be3 {[%clk 0:03:06.1]} 6... Bg7 {[%clk 0:03:03.6]}
7. f3 {[%clk 0:03:07.4]} 7... Nc6 {[%clk 0:03:04.3]} 8. Qd2 {[%clk 0:03:08.7]}
8... Bd7 {[%clk 0:03:05.3]} 9. g4 {[%clk 0:03:07.6]} 9... Rc8 {[%clk 0:03:05.8]}
10. h4 {[%clk 0:03:08.8]} 10... Ne5 {[%clk 0:03:04]} 11. h5 {[%clk 0:03:09.7]}
11... O-O {[%clk 0:02:57.7]} 12. hxg6 {[%clk 0:03:04.6]} 12... fxg6 {[%clk
0:02:56.4]} 13. O-O-O {[%clk 0:03:05.4]} 13... Qa5 {[%clk 0:02:25.3]} 14. Nb3
{[%clk 0:03:05.4]} 14... Qc7 {[%clk 0:02:25.1]} 15. Be2 {[%clk 0:03:04.7]} 15...
b5 {[%clk 0:02:09.7]} 16. g5 {[%clk 0:03:04.4]} 16... b4 {[%clk 0:02:10.3]} 17.
Nb5 {[%clk 0:02:55.5]} 17... Bxb5 {[%clk 0:02:06.9]} 18. gxf6 {[%clk 0:02:56.7]}
18... Bxe2 {[%clk 0:01:56.4]} 19. fxg7 {[%clk 0:02:57.7]} 19... Rxf3 {[%clk
0:01:56.9]} 20. Qxe2 {[%clk 0:02:13.7]} 20... Rxe3 {[%clk 0:01:57.7]} 21. Qh2
{[%clk 0:02:13]} 21... Rh3 {[%clk 0:01:54.7]} 22. Qg2 {[%clk 0:02:08.1]} 22...
Rxh1 {[%clk 0:01:18.2]} 23. Rxh1 {[%clk 0:02:07.8]} 23... Kxg7 {[%clk
0:01:19.2]} 24. Nd4 {[%clk 0:02:07]} 24... Qc4 {[%clk 0:01:06.3]} 25. Nf5+
{[%clk 0:02:04.8]} 25... Kh8 {[%clk 0:00:59]} 26. Nxe7 {[%clk 0:01:41.1]} 26...
Rc7 {[%clk 0:00:18.7]} 27. Nd5 {[%clk 0:01:40.3]} 27... Rf7 {[%clk 0:00:15]} 28.
Kb1 {[%clk 0:01:37.3]} 28... Qd4 {[%clk 0:00:14]} 29. Rc1 {[%clk 0:01:29.9]}
29... Nc4 {[%clk 0:00:14.8]} 30. c3 {[%clk 0:01:22.9]} 30... Qd3+ {[%clk
0:00:15.8]} 31. Qc2 {[%clk 0:01:22.1]} 31... Qxc2+ {[%clk 0:00:16.9]} 32. Kxc2
{[%clk 0:01:22.7]} 32... bxc3 {[%clk 0:00:17.9]} 33. Kxc3 {[%clk 0:01:23.8]}
33... Ne5 {[%clk 0:00:19.1]} 34. Kd4 {[%clk 0:01:20.2]} 34... h5 {[%clk
0:00:20.2]} 35. Rc8+ {[%clk 0:01:18.7]} 35... Kg7 {[%clk 0:00:21.1]} 36. Rd8
{[%clk 0:01:20.2]} 36... h4 {[%clk 0:00:22.3]} 37. Rxd6 {[%clk 0:01:20.6]} 37...
h3 {[%clk 0:00:23.7]} 38. Nf4 {[%clk 0:00:58.6]} 38... h2 {[%clk 0:00:19.9]} 39.
Ne6+ {[%clk 0:00:54.7]} 39... Kh6 {[%clk 0:00:18.1]} 40. Rd8 {[%clk 0:00:49.7]}
40... h1=Q {[%clk 0:00:18]} 41. Kxe5 {[%clk 0:00:50]} 41... Qh2+ {[%clk
0:00:18.5]} 42. Kd5 {[%clk 0:00:51.4]} 42... Rh7 {[%clk 0:00:19.3]} 43. e5
{[%clk 0:00:46.3]} 43... Qxb2 {[%clk 0:00:20]} 44. Rd6 {[%clk 0:00:38.7]} 44...
Qxa2+ {[%clk 0:00:21.1]} 45. Kd4 {[%clk 0:00:40.1]} 45... Re7 {[%clk 0:00:22.2]}
46. Nf4 {[%clk 0:00:40.9]} 46... Qb2+ {[%clk 0:00:23.6]} 47. Kd3 {[%clk
0:00:39.8]} 47... Qb3+ {[%clk 0:00:24.4]} 48. Ke4 {[%clk 0:00:40.6]} 48... Qc4+
{[%clk 0:00:25.2]} 49. Kf3 {[%clk 0:00:41.2]} 49... Qc3+ {[%clk 0:00:25.6]} 50.
Kg4 {[%clk 0:00:42.5]} 50... Qxe5 {[%clk 0:00:26.6]} 51. Rxg6+ {[%clk
0:00:40.2]} 51... Kh7 {[%clk 0:00:27.7]} 52. Rg5 {[%clk 0:00:39]} 52... Rg7
{[%clk 0:00:26.4]} 0-1

[Event "*** Titled Tuesday Blitz"]
[Site "Chess.com"]
[Date "2019.02.05"]
[Round "9"]
[White "Redbandit87"]
[Black "matiss90"]
[Result "0-1"]
[WhiteElo "2384"]
[BlackElo "2467"]
[TimeControl "180+2"]
[EndTime "15:13:54 PST"]
[Termination "matiss90 won by resignation"]

1. d4 {[%clk 0:02:57.7]} 1... Nf6 {[%clk 0:03:00.7]} 2. Bf4 {[%clk 0:02:59]}
2... g6 {[%clk 0:02:55.8]} 3. Nc3 {[%clk 0:02:59.9]} 3... Bg7 {[%clk 0:02:48.4]}
4. Qd2 {[%clk 0:03:00.7]} 4... c6 {[%clk 0:02:40.7]} 5. Bh6 {[%clk 0:02:54.6]}
5... Bxh6 {[%clk 0:02:41.6]} 6. Qxh6 {[%clk 0:02:54.9]} 6... b5 {[%clk
0:02:41.7]} 7. a3 {[%clk 0:02:50]} 7... Qb6 {[%clk 0:02:32.6]} 8. e3 {[%clk
0:02:24.8]} 8... b4 {[%clk 0:02:27.5]} 9. Na4 {[%clk 0:02:20.7]} 9... Qa5 {[%clk
0:02:27.8]} 10. axb4 {[%clk 0:02:21.5]} 10... Qxb4+ {[%clk 0:01:40.5]} 11. c3
{[%clk 0:02:22.2]} 11... Qd6 {[%clk 0:01:37]} 12. Nc5 {[%clk 0:02:11.7]} 12...
Qc7 {[%clk 0:01:33.7]} 13. Nf3 {[%clk 0:01:59.2]} 13... d6 {[%clk 0:01:33]} 14.
Nd3 {[%clk 0:01:58.1]} 14... Bf5 {[%clk 0:01:32]} 15. h3 {[%clk 0:01:53.6]}
15... Bxd3 {[%clk 0:01:30.7]} 16. Bxd3 {[%clk 0:01:54.2]} 16... a5 {[%clk
0:01:31.6]} 17. O-O {[%clk 0:01:52.2]} 17... Nbd7 {[%clk 0:01:32.5]} 18. b4
{[%clk 0:01:51.9]} 18... e5 {[%clk 0:01:30.4]} 19. Nd2 {[%clk 0:01:48.2]} 19...
Ke7 {[%clk 0:01:28.5]} 20. dxe5 {[%clk 0:01:38.2]} 20... Nxe5 {[%clk 0:01:25.5]}
21. Be2 {[%clk 0:01:38.8]} 21... axb4 {[%clk 0:01:25.9]} 22. cxb4 {[%clk
0:01:38.7]} 22... Rxa1 {[%clk 0:01:19.3]} 23. Rxa1 {[%clk 0:01:40.6]} 23... Rb8
{[%clk 0:01:18.7]} 24. Qf4 {[%clk 0:01:38.9]} 24... Nd5 {[%clk 0:01:08.6]} 25.
Qh4+ {[%clk 0:01:21.8]} 25... Nf6 {[%clk 0:01:08.7]} 26. Rb1 {[%clk 0:01:18.7]}
26... h5 {[%clk 0:01:06.2]} 27. Qd4 {[%clk 0:01:15.5]} 27... Kf8 {[%clk
0:00:59.7]} 28. f4 {[%clk 0:01:15.1]} 28... Ned7 {[%clk 0:00:59.8]} 29. Nc4
{[%clk 0:01:12.8]} 29... d5 {[%clk 0:00:58.2]} 30. Nd2 {[%clk 0:01:08.1]} 30...
c5 {[%clk 0:00:49.6]} 31. bxc5 {[%clk 0:01:07.7]} 31... Rxb1+ {[%clk 0:00:50.4]}
32. Nxb1 {[%clk 0:01:09.6]} 32... Qxc5 {[%clk 0:00:51.1]} 33. Nd2 {[%clk
0:01:07.2]} 33... Qxd4 {[%clk 0:00:51.2]} 34. exd4 {[%clk 0:01:09.1]} 34... Nb8
{[%clk 0:00:45.9]} 35. Bb5 {[%clk 0:01:06.4]} 35... Ke7 {[%clk 0:00:44.8]} 36.
Nf3 {[%clk 0:01:03.9]} 36... Ne4 {[%clk 0:00:42.4]} 37. Ne5 {[%clk 0:00:47.4]}
37... Nc3 {[%clk 0:00:40.1]} 38. Bd3 {[%clk 0:00:45.9]} 38... Nd7 {[%clk
0:00:33.6]} 39. Kf2 {[%clk 0:00:44.5]} 39... Ne4+ {[%clk 0:00:22]} 40. Bxe4
{[%clk 0:00:44.3]} 40... dxe4 {[%clk 0:00:23]} 41. Ke3 {[%clk 0:00:45.1]} 41...
Nf6 {[%clk 0:00:11.2]} 42. Nc4 {[%clk 0:00:41.3]} 42... Ke6 {[%clk 0:00:11]} 43.
Nb6 {[%clk 0:00:35.7]} 43... Nd5+ {[%clk 0:00:07.7]} 44. Nxd5 {[%clk 0:00:36.5]}
44... Kxd5 {[%clk 0:00:08.9]} 45. g4 {[%clk 0:00:36.8]} 45... hxg4 {[%clk
0:00:09.8]} 46. hxg4 {[%clk 0:00:35.1]} 46... f5 {[%clk 0:00:10.6]} 47. gxf5
{[%clk 0:00:35.7]} 47... gxf5 {[%clk 0:00:12.5]} 48. Ke2 {[%clk 0:00:36]} 48...
Kxd4 {[%clk 0:00:13.5]} 49. Kd2 {[%clk 0:00:37.5]} 49... e3+ {[%clk 0:00:14.7]}
50. Ke2 {[%clk 0:00:38.8]} 50... Ke4 {[%clk 0:00:16.6]} 51. Ke1 {[%clk
0:00:40.2]} 0-1

[Event "*** Titled Tuesday Blitz"]
[Site "Chess.com"]
[Date "2019.02.05"]
[Round "9"]
[White "WhiteKnight2612"]
[Black "AttilaTurzo"]
[Result "0-1"]
[WhiteElo "2561"]
[BlackElo "2424"]
[TimeControl "180+2"]
[EndTime "15:13:57 PST"]
[Termination "AttilaTurzo won by checkmate"]

1. g3 {[%clk 0:03:01.9]} 1... d5 {[%clk 0:03:00]} 2. Bg2 {[%clk 0:03:00.7]} 2...
c6 {[%clk 0:02:59.3]} 3. Nf3 {[%clk 0:03:01.1]} 3... Bf5 {[%clk 0:02:58.1]} 4.
O-O {[%clk 0:03:01]} 4... Nd7 {[%clk 0:02:58.6]} 5. d3 {[%clk 0:03:01.6]} 5...
Ngf6 {[%clk 0:02:58.5]} 6. Nc3 {[%clk 0:03:02.8]} 6... e5 {[%clk 0:02:58]} 7.
Bg5 {[%clk 0:03:03.2]} 7... Be7 {[%clk 0:02:54]} 8. Re1 {[%clk 0:03:02]} 8...
O-O {[%clk 0:02:51.3]} 9. e4 {[%clk 0:03:02.1]} 9... dxe4 {[%clk 0:02:51.5]} 10.
dxe4 {[%clk 0:03:04]} 10... Be6 {[%clk 0:02:50.6]} 11. Qe2 {[%clk 0:03:05.2]}
11... h6 {[%clk 0:02:47.3]} 12. Be3 {[%clk 0:03:05.2]} 12... Qc7 {[%clk
0:02:46]} 13. Rad1 {[%clk 0:03:05.1]} 13... Bc5 {[%clk 0:02:45.8]} 14. h3 {[%clk
0:03:02.7]} 14... Rad8 {[%clk 0:02:41.3]} 15. Kh2 {[%clk 0:03:03.6]} 15... Rfe8
{[%clk 0:02:37.7]} 16. a3 {[%clk 0:03:03.4]} 16... Bxe3 {[%clk 0:02:33.9]} 17.
Qxe3 {[%clk 0:03:04.1]} 17... Qb6 {[%clk 0:02:35.3]} 18. Qxb6 {[%clk 0:03:02.7]}
18... axb6 {[%clk 0:02:36.5]} 19. Rd6 {[%clk 0:02:59.8]} 19... Kf8 {[%clk
0:02:34.6]} 20. Red1 {[%clk 0:02:59.8]} 20... Ke7 {[%clk 0:02:35.9]} 21. g4
{[%clk 0:02:50.4]} 21... g5 {[%clk 0:02:33.4]} 22. Kg3 {[%clk 0:02:43.8]} 22...
Nh7 {[%clk 0:02:31]} 23. Bf1 {[%clk 0:02:39.3]} 23... Nhf8 {[%clk 0:02:29.8]}
24. R6d2 {[%clk 0:02:35.1]} 24... Ng6 {[%clk 0:02:27.3]} 25. Nd5+ {[%clk
0:02:27.4]} 25... cxd5 {[%clk 0:01:57.6]} 26. exd5 {[%clk 0:02:28.3]} 26... Nc5
{[%clk 0:01:59]} 27. dxe6 {[%clk 0:02:29.8]} 27... Ne4+ {[%clk 0:02:00.2]} 28.
Kh2 {[%clk 0:02:31]} 28... Nxd2 {[%clk 0:02:01.2]} 29. Nxd2 {[%clk 0:02:28.8]}
29... Kxe6 {[%clk 0:01:43]} 30. Bd3 {[%clk 0:02:24.2]} 30... Nf4 {[%clk
0:01:43.7]} 31. Ne4 {[%clk 0:02:17]} 31... Ke7 {[%clk 0:01:44.5]} 32. Ng3 {[%clk
0:02:14.3]} 32... Kf8 {[%clk 0:01:37]} 33. Ne4 {[%clk 0:02:10.7]} 33... Rd4
{[%clk 0:01:34.4]} 34. f3 {[%clk 0:02:10.9]} 34... Red8 {[%clk 0:01:34.9]} 35.
Nf2 {[%clk 0:02:11.7]} 35... f6 {[%clk 0:01:29.2]} 36. Re1 {[%clk 0:02:10.8]}
36... Nxd3 {[%clk 0:01:23.9]} 37. cxd3 {[%clk 0:02:11.1]} 37... Rc8 {[%clk
0:01:24.9]} 38. Re2 {[%clk 0:02:09.5]} 38... Kf7 {[%clk 0:01:19.8]} 39. Kg3
{[%clk 0:02:08.9]} 39... Rc1 {[%clk 0:01:19.5]} 40. Rd2 {[%clk 0:02:06.9]} 40...
b5 {[%clk 0:01:20.2]} 41. Ne4 {[%clk 0:02:04.4]} 41... b4 {[%clk 0:01:19.8]} 42.
axb4 {[%clk 0:02:04.2]} 42... Rxb4 {[%clk 0:01:21.7]} 43. Nd6+ {[%clk
0:02:04.6]} 43... Ke6 {[%clk 0:01:22.6]} 44. Nc4 {[%clk 0:02:05.9]} 44... b5
{[%clk 0:01:21.4]} 45. Ne3 {[%clk 0:02:06.2]} 45... Rb1 {[%clk 0:01:21.2]} 46.
Nd1 {[%clk 0:02:05.8]} 46... Rb3 {[%clk 0:01:13.4]} 47. Kf2 {[%clk 0:02:06.7]}
47... Rc1 {[%clk 0:01:14.4]} 48. Ke2 {[%clk 0:02:03.9]} 48... Rc8 {[%clk
0:01:13.8]} 49. Nf2 {[%clk 0:02:01.4]} 49... h5 {[%clk 0:01:13.1]} 50. Ne4
{[%clk 0:01:59]} 50... hxg4 {[%clk 0:01:13.3]} 51. hxg4 {[%clk 0:01:59.4]} 51...
Rc1 {[%clk 0:01:09.9]} 52. Nf2 {[%clk 0:01:53.8]} 52... Kd5 {[%clk 0:01:07.7]}
53. Nd1 {[%clk 0:01:52.8]} 53... Kd4 {[%clk 0:01:06.5]} 54. Nf2 {[%clk
0:01:53.5]} 54... b4 {[%clk 0:01:03.2]} 55. Nd1 {[%clk 0:01:48.6]} 55... Rxd1
{[%clk 0:01:04.1]} 56. Kxd1 {[%clk 0:01:28.1]} 56... Rxd3 {[%clk 0:01:04.7]} 57.
Ke2 {[%clk 0:01:28.9]} 57... Rxd2+ {[%clk 0:01:03.7]} 58. Kxd2 {[%clk
0:01:30.8]} 58... e4 {[%clk 0:00:58.8]} 59. Ke2 {[%clk 0:01:22.9]} 59... b3
{[%clk 0:00:52.5]} 60. fxe4 {[%clk 0:01:15.3]} 60... Kxe4 {[%clk 0:00:53.7]} 61.
Kd2 {[%clk 0:01:17.2]} 61... f5 {[%clk 0:00:54.8]} 62. Kc3 {[%clk 0:01:19.1]}
62... fxg4 {[%clk 0:00:54.5]} 63. Kxb3 {[%clk 0:01:09.6]} 63... g3 {[%clk
0:00:54.8]} 64. Ka3 {[%clk 0:01:10.9]} 64... g2 {[%clk 0:00:56.4]} 65. b4 {[%clk
0:01:12.8]} 65... g1=Q {[%clk 0:00:58.3]} 66. b5 {[%clk 0:01:14.7]} 66... Qb6
{[%clk 0:00:56.1]} 67. Kb4 {[%clk 0:01:16.1]} 67... g4 {[%clk 0:00:56.9]} 68.
Kc4 {[%clk 0:01:18]} 68... g3 {[%clk 0:00:58.8]} 69. Kc3 {[%clk 0:01:19.8]}
69... g2 {[%clk 0:01:00.7]} 70. Kd2 {[%clk 0:01:21.7]} 70... g1=Q {[%clk
0:01:02.6]} 71. Ke2 {[%clk 0:01:23.6]} 71... Qbf2# {[%clk 0:01:00.5]} 0-1

[Event "*** Titled Tuesday Blitz"]
[Site "Chess.com"]
[Date "2019.02.05"]
[Round "9"]
[White "kuli4ik"]
[Black "AndrBaryshpolets"]
[Result "0-1"]
[WhiteElo "2822"]
[BlackElo "2638"]
[TimeControl "180+2"]
[EndTime "15:13:59 PST"]
[Termination "AndrBaryshpolets won by resignation"]

1. g3 {[%clk 0:03:01.9]} 1... Nf6 {[%clk 0:03:00.4]} 2. Bg2 {[%clk 0:03:03.8]}
2... d5 {[%clk 0:03:02]} 3. b3 {[%clk 0:03:04.5]} 3... c6 {[%clk 0:03:02.5]} 4.
Bb2 {[%clk 0:03:06.4]} 4... Bf5 {[%clk 0:02:58.8]} 5. d3 {[%clk 0:03:07.1]} 5...
h6 {[%clk 0:02:59.2]} 6. Nd2 {[%clk 0:03:08.2]} 6... e6 {[%clk 0:02:59.2]} 7. e3
{[%clk 0:03:09.4]} 7... Nbd7 {[%clk 0:02:57.3]} 8. a3 {[%clk 0:03:10.8]} 8... a5
{[%clk 0:02:57.6]} 9. h3 {[%clk 0:03:12.2]} 9... Be7 {[%clk 0:02:52.1]} 10. Ne2
{[%clk 0:03:13.2]} 10... Qb6 {[%clk 0:02:46.4]} 11. O-O {[%clk 0:03:13.5]} 11...
O-O {[%clk 0:02:46.1]} 12. g4 {[%clk 0:03:14.2]} 12... Bh7 {[%clk 0:02:45.6]}
13. Ng3 {[%clk 0:03:15.4]} 13... a4 {[%clk 0:02:40.2]} 14. b4 {[%clk 0:03:04.4]}
14... c5 {[%clk 0:02:41.2]} 15. h4 {[%clk 0:02:54.7]} 15... Ne8 {[%clk
0:02:24.4]} 16. g5 {[%clk 0:02:46.8]} 16... hxg5 {[%clk 0:02:17.5]} 17. hxg5
{[%clk 0:02:48.7]} 17... Bxg5 {[%clk 0:02:16.5]} 18. Rb1 {[%clk 0:02:43.7]}
18... cxb4 {[%clk 0:01:58.7]} 19. Bd4 {[%clk 0:02:42.3]} 19... Qc7 {[%clk
0:01:59.3]} 20. Rxb4 {[%clk 0:02:39.8]} 20... Be7 {[%clk 0:01:48.2]} 21. Rb1
{[%clk 0:02:39.9]} 21... Bxa3 {[%clk 0:01:45.4]} 22. e4 {[%clk 0:02:29.5]} 22...
Bc5 {[%clk 0:01:27.8]} 23. Bxc5 {[%clk 0:02:28]} 23... Qxc5 {[%clk 0:01:06.1]}
24. Rxb7 {[%clk 0:02:28.3]} 24... Nb6 {[%clk 0:01:01]} 25. Qb1 {[%clk
0:02:26.1]} 25... Ra6 {[%clk 0:00:56.1]} 26. exd5 {[%clk 0:01:49.8]} 26... Nd6
{[%clk 0:00:56.9]} 27. Nde4 {[%clk 0:01:25.5]} 27... Bxe4 {[%clk 0:00:57.4]} 28.
Nxe4 {[%clk 0:01:26.2]} 28... Nxe4 {[%clk 0:00:57.8]} 29. dxe4 {[%clk 0:01:27]}
29... exd5 {[%clk 0:00:53.7]} 30. e5 {[%clk 0:01:28.3]} 30... Qc6 {[%clk
0:00:46.9]} 31. Re7 {[%clk 0:01:21.2]} 31... Nc8 {[%clk 0:00:44.7]} 32. Qb4
{[%clk 0:01:20.4]} 32... Nxe7 {[%clk 0:00:44.9]} 33. Qxe7 {[%clk 0:01:22.3]}
33... Qxc2 {[%clk 0:00:41.7]} 34. f4 {[%clk 0:01:17.5]} 34... Rg6 {[%clk
0:00:31]} 35. Rf2 {[%clk 0:01:17.8]} 35... Qd1+ {[%clk 0:00:29.1]} 36. Kh2
{[%clk 0:01:11.5]} 36... Rb8 {[%clk 0:00:21.2]} 37. f5 {[%clk 0:00:57.6]} 37...
Rh6+ {[%clk 0:00:21]} 38. Kg3 {[%clk 0:00:55.5]} 38... Rb3+ {[%clk 0:00:20.9]}
39. Bf3 {[%clk 0:00:56.8]} 39... Qg1+ {[%clk 0:00:20.5]} 40. Rg2 {[%clk
0:00:57.8]} 40... Qe1+ {[%clk 0:00:19.9]} 41. Rf2 {[%clk 0:00:48.9]} 41... Qg1+
{[%clk 0:00:20.4]} 42. Rg2 {[%clk 0:00:49.3]} 42... Rh3+ {[%clk 0:00:20.3]} 43.
Kg4 {[%clk 0:00:46.6]} 43... Qh1 {[%clk 0:00:11.5]} 44. Qe8+ {[%clk 0:00:41.7]}
44... Kh7 {[%clk 0:00:12.4]} 45. Qxf7 {[%clk 0:00:43.2]} 45... Rh6 {[%clk
0:00:08.6]} 46. f6 {[%clk 0:00:31.8]} 46... Qh3+ {[%clk 0:00:09.7]} 47. Kg5
{[%clk 0:00:29.7]} 47... Qh4+ {[%clk 0:00:09.1]} 48. Kf5 {[%clk 0:00:31.2]}
48... Rxf3+ {[%clk 0:00:09.2]} 49. Ke6 {[%clk 0:00:32.1]} 49... Rfxf6+ {[%clk
0:00:10.5]} 50. exf6 {[%clk 0:00:32.5]} 50... Rxf6+ {[%clk 0:00:12.2]} 51. Qxf6
{[%clk 0:00:33.8]} 51... Qxf6+ {[%clk 0:00:14.1]} 0-1

[Event "*** Titled Tuesday Blitz"]
[Site "Chess.com"]
[Date "2019.02.05"]
[Round "9"]
[White "CzechmVIII"]
[Black "Hieronymus00"]
[Result "0-1"]
[WhiteElo "2099"]
[BlackElo "2183"]
[TimeControl "180+2"]
[EndTime "15:14:10 PST"]
[Termination "Hieronymus00 won by resignation"]

1. e4 {[%clk 0:03:01.9]} 1... e5 {[%clk 0:03:00.9]} 2. Nf3 {[%clk 0:03:02.6]}
2... Nc6 {[%clk 0:03:02.2]} 3. Bb5 {[%clk 0:03:03.5]} 3... a6 {[%clk 0:03:03.2]}
4. Ba4 {[%clk 0:03:04.7]} 4... Nf6 {[%clk 0:03:03.9]} 5. O-O {[%clk 0:03:05.8]}
5... Bc5 {[%clk 0:03:04.5]} 6. c3 {[%clk 0:03:01.8]} 6... b5 {[%clk 0:03:05.1]}
7. Bb3 {[%clk 0:03:02.9]} 7... d6 {[%clk 0:03:05.7]} 8. a4 {[%clk 0:03:01.8]}
8... Rb8 {[%clk 0:03:06.1]} 9. d4 {[%clk 0:03:01.1]} 9... Bb6 {[%clk 0:03:06.9]}
10. axb5 {[%clk 0:02:59.1]} 10... axb5 {[%clk 0:03:07.4]} 11. Qd3 {[%clk
0:03:00.7]} 11... O-O {[%clk 0:02:59.1]} 12. Bg5 {[%clk 0:03:01.1]} 12... h6
{[%clk 0:02:58.8]} 13. Bxf6 {[%clk 0:03:02.4]} 13... Qxf6 {[%clk 0:02:59.4]} 14.
Qxb5 {[%clk 0:03:01.8]} 14... Na7 {[%clk 0:02:45.8]} 15. Qd3 {[%clk 0:02:45.4]}
15... Bg4 {[%clk 0:02:45.9]} 16. Nbd2 {[%clk 0:02:42.1]} 16... Nc6 {[%clk
0:02:46.7]} 17. Bd5 {[%clk 0:02:24.8]} 17... Ne7 {[%clk 0:02:39.3]} 18. dxe5
{[%clk 0:02:18.2]} 18... dxe5 {[%clk 0:02:40]} 19. h3 {[%clk 0:02:19.1]} 19...
Bh5 {[%clk 0:02:32.8]} 20. b4 {[%clk 0:01:58.5]} 20... Rfd8 {[%clk 0:02:31.5]}
21. Qe2 {[%clk 0:01:45.8]} 21... Ng6 {[%clk 0:02:21.1]} 22. g3 {[%clk
0:00:50.7]} 22... c6 {[%clk 0:02:18.9]} 23. Bc4 {[%clk 0:00:33.3]} 23... Rxd2
{[%clk 0:02:13.1]} 24. Qxd2 {[%clk 0:00:35.2]} 24... Bxf3 {[%clk 0:02:08.5]} 25.
Kh2 {[%clk 0:00:27.3]} 25... Rd8 {[%clk 0:02:04.5]} 26. Qe1 {[%clk 0:00:18.8]}
26... h5 {[%clk 0:01:34.6]} 27. Ra6 {[%clk 0:00:15.1]} 27... Rb8 {[%clk
0:01:29.9]} 28. Rxb6 {[%clk 0:00:14.1]} 28... Rxb6 {[%clk 0:01:30.7]} 29. Qe3
{[%clk 0:00:15.1]} 29... Rb8 {[%clk 0:01:31.6]} 30. Ra1 {[%clk 0:00:14.8]} 30...
Rd8 {[%clk 0:01:30.3]} 31. Ra7 {[%clk 0:00:15.4]} 31... Rf8 {[%clk 0:01:27.6]}
32. Qc5 {[%clk 0:00:13.3]} 32... Bxe4 {[%clk 0:01:26.1]} 33. Qe3 {[%clk
0:00:10.3]} 33... Qf3 {[%clk 0:01:20.9]} 34. Qxf3 {[%clk 0:00:10.9]} 34... Bxf3
{[%clk 0:01:22.8]} 35. Bb3 {[%clk 0:00:05.9]} 35... h4 {[%clk 0:01:22.9]} 36. c4
{[%clk 0:00:06.6]} 36... hxg3+ {[%clk 0:01:19.5]} 37. fxg3 {[%clk 0:00:07.9]}
37... e4 {[%clk 0:01:17.5]} 38. b5 {[%clk 0:00:08.1]} 38... cxb5 {[%clk
0:01:18.5]} 39. cxb5 {[%clk 0:00:09.4]} 39... e3 {[%clk 0:01:19.8]} 40. Kg1
{[%clk 0:00:07.1]} 40... e2 {[%clk 0:01:15.5]} 41. Kf2 {[%clk 0:00:08.3]} 41...
Ne5 {[%clk 0:01:15.2]} 42. Bc2 {[%clk 0:00:04.6]} 42... Bh5 {[%clk 0:01:08.3]}
43. Re7 {[%clk 0:00:05.3]} 43... Nc4 {[%clk 0:01:04.8]} 44. g4 {[%clk
0:00:03.5]} 44... Bg6 {[%clk 0:01:05.5]} 45. Bxg6 {[%clk 0:00:03.4]} 45... fxg6+
{[%clk 0:01:06.7]} 46. Kxe2 {[%clk 0:00:05.2]} 46... Rb8 {[%clk 0:01:06.5]} 47.
Rc7 {[%clk 0:00:04.7]} 47... Ne5 {[%clk 0:01:03.7]} 48. Rc5 {[%clk 0:00:05.7]}
48... Nd7 {[%clk 0:00:57.9]} 49. Rd5 {[%clk 0:00:05.9]} 49... Nf6 {[%clk
0:00:57.8]} 50. Re5 {[%clk 0:00:05.9]} 50... Kf7 {[%clk 0:00:57.3]} 51. Kd3
{[%clk 0:00:07.2]} 51... Nd7 {[%clk 0:00:56.9]} 52. Rd5 {[%clk 0:00:08.2]} 52...
Ke6 {[%clk 0:00:56.4]} 53. Rg5 {[%clk 0:00:07.4]} 53... Kf6 {[%clk 0:00:50.5]}
54. Rd5 {[%clk 0:00:07.8]} 54... Rb7 {[%clk 0:00:47.8]} 55. Kc4 {[%clk
0:00:08.7]} 55... Nb6+ {[%clk 0:00:43.4]} 0-1